bitfinex-derivatives/quotes_BTCF0:USTF0_20250313
["timestamp","ask_amount","ask_price","bid_price","bid_amount"]
[1741860147458,0.0834,83408.0,83407.0,0.1219036]
[1741860147764,0.2033021,83408.0,83407.0,0.1219036]
[1741860151964,0.2033021,83408.0,83407.0,0.002]
[1741860152167,0.2470021,83408.0,83407.0,0.1219036]
[1741860153064,0.0834,83408.0,83407.0,0.1620036]
[1741860153273,0.0834,83408.0,83407.0,0.2021036]
[1741860153567,0.2033021,83408.0,83407.0,0.1219036]
[1741860154959,0.2033021,83408.0,83407.0,0.2051036]
[1741860155268,0.2033021,83408.0,83407.0,0.002]
[1741860155865,0.2033021,83408.0,83407.0,0.1219036]
[1741860156069,0.2033021,83408.0,83407.0,0.002]
[1741860156274,0.1199136,83400.0,83399.0,0.00017975]
[1741860156759,0.2443136,83400.0,83399.0,0.12009485]
[1741860156961,0.119928,83390.0,83389.0,0.33359294]
[1741860157159,0.0599632,83392.0,83389.0,0.059964]
[1741860157374,0.2015266,83391.0,83390.0,0.250728]
[1741860158172,0.2015266,83391.0,83390.0,0.207128]
[1741860158371,0.2015266,83391.0,83390.0,0.164028]
[1741860158571,0.2015266,83391.0,83390.0,0.119928]
[1741860158767,0.1985266,83391.0,83390.0,0.119928]
[1741860159271,0.1985266,83391.0,83387.0,0.21366654]
[1741860159272,0.1179309,83388.0,83387.0,0.21366654]
[1741860159473,0.1129309,83388.0,83387.0,0.37579884]
[1741860159670,0.1129309,83388.0,83387.0,0.41939884]
[1741860160266,0.1548309,83388.0,83387.0,0.41939884]
[1741860161168,0.1558309,83388.0,83387.0,0.2067323]
[1741860161574,0.0439,83388.0,83387.0,0.2067323]
[1741860161763,0.0449,83388.0,83387.0,0.2067323]
[1741860161968,0.1648309,83388.0,83387.0,0.2067323]
[1741860162769,0.0449,83388.0,83387.0,0.2067323]
[1741860163167,0.1648309,83388.0,83387.0,0.2067323]
[1741860163770,0.002,83388.0,83387.0,0.2867323]
[1741860164464,0.002,83388.0,83387.0,0.4148523]
[1741860165072,0.1219309,83388.0,83387.0,0.4148523]
[1741860165667,0.2082309,83388.0,83387.0,0.4148523]
[1741860165975,0.2082309,83388.0,83387.0,0.2867323]
[1741860166176,0.2082309,83388.0,83387.0,0.001]
[1741860166866,0.2082309,83388.0,83387.0,0.1627323]
[1741860167069,0.2082309,83388.0,83387.0,0.0428]
[1741860167275,0.2082309,83388.0,83387.0,0.001]
[1741860167678,0.3363109,83388.0,83387.0,0.001]
[1741860167868,0.1199381,83383.0,83382.0,0.00028338]
[1741860168073,0.1199381,83383.0,83382.0,0.12022288]
[1741860168768,0.2042381,83383.0,83382.0,0.20592288]
[1741860169690,0.2052381,83383.0,83382.0,0.20592288]
[1741860170173,0.2062381,83383.0,83382.0,0.20592288]
[1741860175078,0.2062381,83383.0,83382.0,0.04228338]
[1741860175485,0.2494381,83383.0,83382.0,0.16222288]
[1741860177783,0.2062381,83383.0,83382.0,0.16222288]
[1741860177983,0.2062381,83383.0,83382.0,0.20412288]
[1741860178688,0.0863,83383.0,83382.0,0.20412288]
[1741860178989,0.2062381,83383.0,83382.0,0.20412288]
[1741860181088,0.0863,83383.0,83382.0,0.20412288]
[1741860181482,0.002,83383.0,83382.0,0.20412288]
[1741860181681,0.1219381,83383.0,83382.0,0.20412288]
[1741860182179,0.1625381,83383.0,83382.0,0.20412288]
[1741860184188,0.2028381,83383.0,83382.0,0.20412288]
[1741860186190,0.0829,83383.0,83382.0,0.20412288]
[1741860186489,1e-07,83383.0,83382.0,0.20412288]
[1741860186689,1e-07,83388.0,83387.0,0.1199323]
[1741860186889,1e-07,83388.0,83387.0,0.1399323]
[1741860187089,1e-07,83388.0,83387.0,0.17603008]
[1741860187290,1e-07,83388.0,83387.0,0.25683008]
[1741860187597,1e-07,83388.0,83387.0,0.26683008]
[1741860187991,1e-07,83388.0,83387.0,0.2307323]
[1741860188184,0.0010001,83388.0,83387.0,0.2307323]
[1741860189388,0.002,83388.0,83387.0,0.2327323]
[1741860190897,0.0007717,83388.0,83387.0,0.2327323]
[1741860192098,0.0423,83393.0,83392.0,0.1199251]
[1741860192292,0.00017986,83399.0,83397.0,0.1199179]
[1741860192494,0.00017986,83399.0,83398.0,0.2443165]
[1741860192895,0.12009496,83399.0,83398.0,0.2443165]
[1741860193097,0.12009496,83399.0,83398.0,0.2033165]
[1741860193296,0.12009496,83399.0,83398.0,0.1609165]
[1741860193486,0.00017986,83399.0,83398.0,0.1609165]
[1741860193694,0.04347986,83399.0,83398.0,0.2033165]
[1741860194087,0.04347986,83399.0,83398.0,0.2053165]
[1741860194291,0.16339496,83399.0,83398.0,0.2053165]
[1741860195401,0.16339496,83399.0,83398.0,0.2063165]
[1741860195989,0.16339496,83399.0,83398.0,0.003]
[1741860196288,0.20619496,83399.0,83398.0,0.1229165]
[1741860199205,0.20619496,83399.0,83398.0,0.003]
[1741860199400,0.1199237,83393.0,83392.0,0.21449742]
[1741860199611,0.1199237,83393.0,83392.0,0.33442252]
[1741860199798,0.1798831,83395.0,83394.0,0.1199222]
[1741860200100,0.2230831,83395.0,83394.0,0.1199222]
[1741860200296,0.1031611,83395.0,83394.0,0.1199222]
[1741860200903,0.1031611,83395.0,83392.0,0.0599618]
[1741860201205,0.1199237,83393.0,83392.0,0.179886]
[1741860201407,0.0432,83395.0,83394.0,0.1199222]
[1741860201601,0.1631208,83395.0,83394.0,0.1199222]
[1741860203108,0.1631208,83395.0,83394.0,0.1209222]
[1741860203712,0.1631208,83395.0,83394.0,0.001]
[1741860204699,0.1631208,83395.0,83382.0,0.06025248]
[1741860204700,0.1199366,83385.0,83384.0,0.1199359]
[1741860204910,0.1199366,83384.0,83383.0,0.1643381]
[1741860205216,0.2042366,83384.0,83383.0,0.1643381]
[1741860205602,0.2042366,83384.0,83383.0,0.1199381]
[1741860205802,0.0843,83384.0,83382.0,0.00028338]
[1741860206002,0.1199381,83383.0,83382.0,0.00028338]
[1741860206207,0.1199381,83383.0,83382.0,0.12022288]
[1741860206405,0.1623381,83383.0,83382.0,0.12022288]
[1741860207310,0.0424,83383.0,83377.0,0.21449742]
[1741860207513,0.1199453,83378.0,83377.0,0.21449742]
[1741860208017,0.1199453,83378.0,83377.0,0.33444412]
[1741860209011,0.1199453,83378.0,83377.0,0.1199467]
[1741860209207,0.0599769,83373.0,83370.0,0.21629629]
[1741860209419,0.1199553,83371.0,83370.0,0.21629629]
[1741860209607,0.1199553,83371.0,83370.0,0.33625309]
[1741860209914,0.1623553,83371.0,83370.0,0.33625309]
[1741860211010,0.1623553,83371.0,83370.0,0.21629629]
[1741860211413,0.1623553,83371.0,83370.0,0.33625309]
[1741860213416,0.1623553,83371.0,83370.0,0.12175567]
[1741860213610,0.1623553,83371.0,83370.0,0.00179887]
[1741860213818,0.1199568,83370.0,83369.0,0.00012044]
[1741860214207,0.1646568,83370.0,83369.0,0.00012044]
[1741860214606,0.1199726,83359.0,83358.0,0.2070728]
[1741860214908,0.1199726,83359.0,83358.0,0.1640728]
[1741860215305,0.2073726,83359.0,83358.0,0.1640728]
[1741860216111,0.1199755,83357.0,83356.0,0.1799638]
[1741860216917,0.1799949,83344.0,83343.0,0.1199945]
[1741860217818,0.0437,83346.0,83345.0,0.1199928]
[1741860218123,0.247947,83349.0,83348.0,0.1199884]
[1741860218420,0.291647,83349.0,83348.0,0.1199884]
[1741860219014,0.291647,83349.0,83348.0,0.1605884]
[1741860220120,0.248947,83349.0,83348.0,0.1605884]
[1741860221026,0.249947,83349.0,83348.0,0.1605884]
[1741860224727,0.12996,83349.0,83348.0,0.1605884]
[1741860225228,0.249947,83349.0,83348.0,0.1605884]
[1741860225625,0.121987,83349.0,83348.0,0.1605884]
[1741860226017,0.165587,83349.0,83348.0,0.1605884]
[1741860227424,0.165587,83349.0,83348.0,0.0406]
[1741860227626,0.1199884,83348.0,83347.0,0.043]
[1741860227832,0.1199971,83343.0,83342.0,0.1199958]
[1741860228032,0.1199971,83343.0,83342.0,0.1606958]
[1741860228235,0.2019971,83343.0,83342.0,0.1606958]
[1741860229431,0.3299571,83343.0,83342.0,0.1606958]
[1741860229819,0.3309571,83343.0,83342.0,0.1606958]
[1741860230431,0.3755571,83343.0,83342.0,0.1199958]
[1741860230826,0.1800164,83334.0,83333.0,0.0600048]
[1741860231031,0.0600049,83334.0,83333.0,0.0600048]
[1741860231228,0.0600049,83334.0,83333.0,0.1439048]
[1741860231628,0.0859,83336.0,83333.0,0.1439048]
[1741860231932,0.0859,83336.0,83335.0,0.1200072]
[1741860232122,0.12896,83343.0,83342.0,0.1199971]
[1741860232831,0.12796,83343.0,83342.0,0.1199971]
[1741860233128,0.2479556,83343.0,83342.0,0.1199971]
[1741860233519,0.12796,83343.0,83342.0,0.1199971]
[1741860233728,0.12796,83343.0,83342.0,0.1619971]
[1741860233929,0.16856,83343.0,83342.0,0.1619971]
[1741860235231,0.2885556,83343.0,83342.0,0.1619971]
[1741860235628,0.1605956,83343.0,83342.0,0.1619971]
[1741860236528,0.0406,83343.0,83342.0,0.1619971]
[1741860237530,0.0599934,83350.0,83349.0,0.119987]
[1741860237728,0.21206,83351.0,83349.0,0.119987]
[1741860237943,0.3320449,83351.0,83350.0,0.2070856]
[1741860238135,0.21206,83351.0,83350.0,0.2502856]
[1741860238332,0.0841,83351.0,83350.0,0.2502856]
[1741860238537,0.00017998,83352.0,83351.0,0.1199841]
[1741860239037,0.00017998,83352.0,83351.0,0.2060841]
[1741860239828,0.12016268,83352.0,83351.0,0.2060841]
[1741860240028,0.00017998,83352.0,83351.0,0.2060841]
[1741860240529,0.00017998,83352.0,83351.0,0.2160841]
[1741860246640,0.00017998,83352.0,83351.0,0.3440041]
[1741860246944,0.0843,83368.0,83365.0,0.119964]
[1741860247134,0.043,83368.0,83365.0,0.119964]
[1741860247350,0.12176253,83366.0,83365.0,0.119964]
[1741860247639,0.12176253,83366.0,83365.0,0.203664]
[1741860248050,0.12376253,83366.0,83365.0,0.203664]
[1741860248240,0.16676253,83366.0,83365.0,0.203664]
[1741860248842,0.04680003,83366.0,83365.0,0.203664]
[1741860249447,0.04880003,83366.0,83365.0,0.203664]
[1741860249659,0.004,83366.0,83365.0,0.433664]
[1741860249943,0.00017998,83374.0,83373.0,0.1199525]
[1741860250145,0.00017998,83374.0,83373.0,0.3499525]
[1741860250736,0.00017998,83374.0,83373.0,0.4760525]
[1741860251949,0.12013098,83374.0,83373.0,0.4760525]
[1741860252249,0.00017998,83374.0,83373.0,0.4760525]
[1741860252447,0.04117998,83374.0,83373.0,0.4760525]
[1741860257749,0.04117998,83374.0,83371.0,0.0599769]
[1741860257949,0.1799413,83372.0,83371.0,0.1799308]
[1741860258150,0.2399212,83372.0,83371.0,0.1799308]
[1741860258345,0.3213212,83372.0,83371.0,0.1799308]
[1741860259451,0.2013596,83372.0,83371.0,0.1799308]
[1741860260154,0.2013596,83372.0,83371.0,0.1809308]
[1741860260349,0.1413797,83372.0,83371.0,0.1809308]
[1741860260947,0.1413797,83372.0,83371.0,0.1799308]
[1741860261749,0.1413797,83372.0,83371.0,0.1809308]
[1741860262159,0.0814,83372.0,83371.0,0.1809308]
[1741860263447,0.0824,83372.0,83371.0,0.1799308]
[1741860263653,0.0834,83372.0,83371.0,0.1799308]
[1741860264249,0.0824,83372.0,83371.0,0.1799308]
[1741860264450,0.0824,83372.0,83371.0,0.1809308]
[1741860264950,0.0814,83372.0,83371.0,0.1809308]
[1741860266153,0.0814,83372.0,83371.0,0.1799308]
[1741860266455,0.00017998,83374.0,83371.0,0.1809308]
[1741860266665,0.119928,83390.0,83389.0,0.119928]
[1741860267050,0.204428,83390.0,83389.0,0.119928]
[1741860267953,0.209428,83390.0,83389.0,0.119928]
[1741860268254,0.1199352,83386.0,83385.0,0.1199341]
[1741860268652,0.1621352,83386.0,83385.0,0.1199341]
[1741860268854,0.1199395,83382.0,83381.0,0.18008827]
[1741860269457,0.0422,83383.0,83382.0,0.1199395]
[1741860269662,0.1621381,83383.0,83382.0,0.1199395]
[1741860269959,0.0422,83383.0,83382.0,0.1199395]
[1741860270151,0.0422,83383.0,83382.0,0.2030395]
[1741860270754,0.0452,83383.0,83382.0,0.2435395]
[1741860271157,0.0482,83383.0,83382.0,0.2435395]
[1741860271361,0.1681381,83383.0,83382.0,0.2435395]
[1741860272175,0.0482,83383.0,83382.0,0.2435395]
[1741860274163,0.1681381,83383.0,83382.0,0.2435395]
[1741860274464,0.0482,83383.0,83382.0,0.2435395]
[1741860276861,0.0482,83383.0,83382.0,0.25543187]
[1741860278665,0.17903122,83402.0,83382.0,0.14549237]
[1741860278967,0.17903122,83402.0,83397.0,0.1199179]
[1741860278968,0.12776,83399.0,83397.0,0.1199179]
[1741860279268,0.16269637,83398.0,83397.0,0.13181027]
[1741860279771,0.16269637,83398.0,83397.0,0.17091027]
[1741860279957,0.16269637,83398.0,83397.0,0.21091027]
[1741860279958,0.20789637,83398.0,83397.0,0.21091027]
[1741860280157,0.20789637,83398.0,83397.0,0.13181027]
[1741860280665,0.08797987,83398.0,83397.0,0.13193381]
[1741860280869,0.09497987,83398.0,83397.0,0.13193381]
[1741860281177,0.21489637,83398.0,83397.0,0.13193381]
[1741860281465,0.05277987,83398.0,83397.0,0.21303381]
[1741860281767,7e-08,83398.0,83397.0,0.29303381]
[1741860282160,0.11991657,83398.0,83397.0,0.29303381]
[1741860282467,0.11991657,83398.0,83397.0,0.21303911]
[1741860282767,0.12491657,83398.0,83397.0,0.13293911]
[1741860283867,0.1289165,83398.0,83397.0,0.13293911]
[1741860284768,0.1289165,83398.0,83397.0,0.13277277]
[1741860285361,0.1712165,83398.0,83397.0,0.13277277]
[1741860285569,0.1712165,83398.0,83397.0,0.17407277]
[1741860285767,0.0513,83398.0,83397.0,0.21317277]
[1741860286870,0.1712165,83398.0,83397.0,0.21317277]
[1741860287461,0.0513,83398.0,83397.0,0.21317277]
[1741860288469,0.059948,83413.0,83397.0,0.10325487]
[1741860288662,0.12008607,83406.0,83405.0,0.1199064]
[1741860288868,0.00017987,83406.0,83405.0,0.13176127]
[1741860289070,0.00017987,83406.0,83405.0,0.19461515]
[1741860289374,0.00017987,83406.0,83405.0,0.1627064]
[1741860289758,0.00117987,83406.0,83405.0,0.2056064]
[1741860290175,0.00117987,83406.0,83405.0,0.23818337]
[1741860290673,0.00217987,83406.0,83405.0,0.23818337]
[1741860290975,0.00117987,83406.0,83405.0,0.23918337]
[1741860291372,0.00117987,83406.0,83405.0,0.21913592]
[1741860292068,0.12008487,83406.0,83405.0,0.13343592]
[1741860292371,0.12008487,83406.0,83405.0,0.13543592]
[1741860292566,0.12008487,83406.0,83405.0,0.01552952]
[1741860292877,0.12008487,83406.0,83405.0,0.001]
[1741860293071,0.19838487,83406.0,83405.0,0.13517266]
[1741860293870,0.19838487,83406.0,83405.0,0.13317266]
[1741860296070,0.19838487,83406.0,83405.0,0.13311356]
[1741860297866,0.19838487,83406.0,83405.0,0.13289604]
[1741860302072,0.19838487,83406.0,83405.0,0.17169604]
[1741860302282,0.07847987,83406.0,83405.0,0.17169604]
[1741860302871,0.19838487,83406.0,83405.0,0.17169604]
[1741860304279,0.19838487,83406.0,83405.0,0.1718297]
[1741860304583,0.19838487,83406.0,83405.0,0.1728297]
[1741860304984,0.19838487,83406.0,83405.0,0.1718297]
[1741860305486,0.19838487,83406.0,83405.0,0.1708297]
[1741860305880,0.19838487,83406.0,83405.0,0.1718297]
[1741860306878,0.19838487,83406.0,83405.0,0.17170859]
[1741860307573,0.19838487,83406.0,83405.0,0.17070859]
[1741860307777,0.19838487,83406.0,83405.0,0.13190859]
[1741860308784,0.19838487,83406.0,83405.0,0.01200219]
[1741860313191,0.19838487,83406.0,83405.0,0.13190859]
[1741860313984,0.19838487,83406.0,83405.0,0.01200219]
[1741860316390,0.0599611,83394.0,83377.0,0.0599729]
[1741860316600,0.1199251,83392.0,83383.0,0.1199377]
[1741860316900,0.1199251,83392.0,83384.0,0.0385]
[1741860317094,0.1969251,83392.0,83384.0,0.1584364]
[1741860317295,0.1969251,83392.0,83387.0,0.0385]
[1741860317697,0.1969251,83392.0,83391.0,0.21869746]
[1741860317896,0.1969251,83392.0,83391.0,1e-08]
[1741860318204,0.1969251,83392.0,83386.0,0.21656885]
[1741860318205,0.1199323,83387.0,83386.0,0.21656885]
[1741860318409,0.1159323,83387.0,83386.0,0.21656885]
[1741860318705,0.1149395,83382.0,83376.0,0.21537449]
[1741860318896,0.2425795,83382.0,83376.0,0.21537449]
[1741860319295,0.2425795,83382.0,83379.0,0.1199434]
[1741860319497,0.3143795,83382.0,83380.0,0.0381]
[1741860319998,0.2746795,83382.0,83380.0,0.0381]
[1741860320197,0.2746795,83382.0,83381.0,0.15962077]
[1741860320395,0.2696795,83382.0,83381.0,0.16562077]
[1741860320596,0.2696795,83382.0,83381.0,0.20372077]
[1741860321194,0.2736795,83382.0,83381.0,0.20372077]
[1741860321595,0.2696795,83382.0,83381.0,0.20372077]
[1741860321795,0.2706795,83382.0,83381.0,0.19772077]
[1741860321995,0.2746795,83382.0,83381.0,0.19772077]
[1741860322206,0.39611502,83382.0,83381.0,0.19772077]
[1741860322807,0.39311502,83382.0,83381.0,0.19772077]
[1741860323007,0.39511502,83382.0,83381.0,0.19772077]
[1741860323208,0.26747502,83382.0,83381.0,0.19772077]
[1741860323505,0.26647502,83382.0,83381.0,0.19772077]
[1741860324598,0.1219395,83382.0,83381.0,0.19772077]
[1741860325696,0.1209395,83382.0,83381.0,0.19772077]
[1741860325908,0.1239395,83382.0,83381.0,0.19772077]
[1741860327503,0.1229395,83382.0,83381.0,0.19772077]
[1741860327710,0.1209395,83382.0,83381.0,0.19772077]
[1741860327906,0.1219395,83382.0,83381.0,0.19772077]
[1741860328209,0.1604395,83382.0,83381.0,0.19772077]
[1741860328508,0.2005395,83382.0,83381.0,0.2097609]
[1741860329502,0.2005395,83382.0,83381.0,0.08982]
[1741860329708,0.1995395,83382.0,83381.0,0.2097609]
[1741860330302,0.1995395,83382.0,83381.0,0.08982]
[1741860330704,0.2005395,83382.0,83381.0,0.08982]
[1741860331110,0.2005395,83382.0,83381.0,0.03827987]
[1741860331296,0.2005395,83382.0,83381.0,0.00017987]
[1741860331501,0.2025395,83382.0,83381.0,0.00017987]
[1741860336009,0.2025395,83382.0,83381.0,0.12012077]
[1741860337108,0.2025395,83382.0,83381.0,0.00017987]
[1741860338010,0.2025395,83382.0,83381.0,0.08287987]
[1741860338315,0.2025395,83382.0,83381.0,0.01216794]
[1741860346223,0.3301395,83382.0,83381.0,0.01216794]
[1741860352607,0.3819589,83382.0,83381.0,0.15262742]
[1741860352809,0.4309589,83382.0,83381.0,0.28284644]
[1741860356218,0.2515395,83382.0,83381.0,0.28284644]
[1741860356613,0.1239395,83382.0,83381.0,0.28284644]
[1741860357915,0.004,83382.0,83381.0,0.28284644]
[1741860358113,0.18167641,83399.0,83398.0,0.1199165]
[1741860358323,0.12935931,83399.0,83398.0,0.15229101]
[1741860358715,0.00179931,83399.0,83398.0,0.24386298]
[1741860359226,0.33470766,83403.0,83402.0,0.1199107]
[1741860359415,0.1199093,83403.0,83402.0,0.15303816]
[1741860359615,0.1199093,83403.0,83402.0,0.16675718]
[1741860360016,0.1199093,83403.0,83402.0,0.20505718]
[1741860360217,0.12118132,83403.0,83402.0,0.20505718]
[1741860360421,0.12618132,83403.0,83402.0,0.20505718]
[1741860361318,0.12618691,83403.0,83402.0,0.20505718]
[1741860361518,0.00627761,83403.0,83402.0,0.20505718]
[1741860362020,0.13118691,83403.0,83402.0,0.20605718]
[1741860363126,0.13118691,83403.0,83402.0,0.22829341]
[1741860363623,0.13118691,83403.0,83402.0,0.10838271]
[1741860363827,0.13118691,83403.0,83402.0,0.26869341]
[1741860366129,0.01127761,83403.0,83402.0,0.26869341]
[1741860366331,0.13118691,83403.0,83402.0,0.26869341]
[1741860368120,0.13118691,83403.0,83402.0,0.24645718]
[1741860368529,0.13118691,83403.0,83402.0,0.12654648]
[1741860368835,0.13118691,83403.0,83402.0,0.24645718]
[1741860369320,0.13118691,83403.0,83402.0,0.12654648]
[1741860369521,0.13118691,83403.0,83402.0,0.01471902]
[1741860369921,0.20688691,83403.0,83402.0,0.01471902]
[1741860370320,0.20688691,83403.0,83402.0,0.001]
[1741860375123,0.20688691,83403.0,83402.0,0.1209107]
[1741860375429,0.20688691,83403.0,83402.0,0.001]
[1741860375846,0.20688691,83403.0,83402.0,0.01412168]
[1741860376744,0.33436691,83403.0,83402.0,0.01412168]
[1741860378134,0.33436691,83403.0,83402.0,0.01409974]
[1741860378335,0.33436691,83403.0,83402.0,0.001]
[1741860378540,0.33436691,83403.0,83402.0,0.01410072]
[1741860378939,0.33436691,83403.0,83402.0,0.001]
[1741860379837,0.33436691,83403.0,83402.0,0.01408953]
[1741860389469,0.1199395,83382.0,83381.0,0.00197878]
[1741860389652,0.1199395,83382.0,83381.0,0.02301243]
[1741860389858,0.1199395,83382.0,83381.0,0.00197878]
[1741860390158,0.1199395,83382.0,83381.0,0.01571347]
[1741860390357,0.12121711,83382.0,83381.0,0.01571347]
[1741860390867,0.15971711,83382.0,83381.0,0.01571347]
[1741860391365,0.16071711,83382.0,83381.0,0.01571347]
[1741860391769,0.16271711,83382.0,83381.0,0.01571347]
[1741860395258,0.16271711,83382.0,83381.0,0.09311347]
[1741860398469,0.20101711,83382.0,83381.0,0.09311347]
[1741860400466,0.20101711,83382.0,83381.0,0.01291736]
[1741860401965,0.1199755,83357.0,83340.0,0.0599998]
[1741860402168,0.1199755,83357.0,83334.0,0.0600038]
[1741860402169,0.2474955,83357.0,83356.0,0.29856714]
[1741860402372,0.24877311,83357.0,83356.0,0.28665104]
[1741860403069,0.32317311,83357.0,83356.0,0.28665104]
[1741860403270,0.24977311,83357.0,83356.0,0.1623769]
[1741860403570,0.24977311,83357.0,83356.0,0.1653769]
[1741860403870,0.24977311,83357.0,83356.0,0.1773945]
[1741860404069,0.12225311,83357.0,83356.0,0.1773945]
[1741860404373,0.24977311,83357.0,83356.0,0.1773945]
[1741860404666,0.24977311,83357.0,83356.0,0.1653769]
[1741860404868,0.24977311,83357.0,83356.0,0.0454]
[1741860405461,0.24877311,83357.0,83356.0,0.0404]
[1741860405661,0.24877311,83357.0,83356.0,0.0424]
[1741860405864,0.12125311,83357.0,83356.0,0.1623769]
[1741860406060,0.24877311,83357.0,83356.0,0.17440095]
[1741860406269,0.24877311,83357.0,83356.0,0.17140095]
[1741860406468,0.24877311,83357.0,83356.0,0.20930095]
[1741860407169,0.24877311,83357.0,83356.0,0.24680095]
[1741860407872,0.24877311,83357.0,83356.0,0.12682405]
[1741860409069,0.24877311,83357.0,83356.0,0.1148]
[1741860409674,0.32437311,83357.0,83356.0,0.1148]
[1741860411162,0.32437311,83357.0,83356.0,0.2347769]
[1741860411467,0.28737311,83357.0,83356.0,0.1148]
[1741860411666,0.28737311,83357.0,83356.0,0.2347769]
[1741860412474,0.28737311,83357.0,83356.0,0.1148]
[1741860413271,0.28737311,83357.0,83356.0,0.2347769]
[1741860413574,0.28737311,83357.0,83356.0,0.1148]
[1741860414075,0.32657311,83357.0,83356.0,0.1148]
[1741860416677,0.32657311,83357.0,83356.0,0.0773]
[1741860417071,0.32657311,83357.0,83356.0,0.1972769]
[1741860417661,0.32657311,83357.0,83356.0,0.0773]
[1741860419772,0.32857311,83357.0,83356.0,0.0753]
[1741860420079,0.33057311,83357.0,83356.0,0.0753]
[1741860420572,0.1199812,83353.0,83352.0,0.0398]
[1741860420874,0.1199812,83353.0,83348.0,0.00017987]
[1741860420875,0.1199856,83350.0,83349.0,0.038]
[1741860421375,0.19816321,83350.0,83349.0,0.038]
[1741860421571,0.19816321,83350.0,83349.0,0.0763]
[1741860422279,0.32568321,83350.0,83349.0,0.0763]
[1741860422572,0.32668321,83350.0,83349.0,0.0763]
[1741860422778,0.32768321,83350.0,83349.0,0.0763]
[1741860427577,0.32768321,83350.0,83348.0,0.00017987]
[1741860427578,0.119987,83349.0,83348.0,0.00017987]
[1741860427986,0.197587,83349.0,83348.0,0.00017987]
[1741860428572,0.19886461,83349.0,83348.0,0.00017987]
[1741860428979,0.19986461,83349.0,83348.0,0.00017987]
[1741860429573,0.20086461,83349.0,83348.0,0.00017987]
[1741860430673,0.32838461,83349.0,83348.0,0.00017987]
[1741860431182,0.32838461,83349.0,83348.0,0.07797987]
[1741860431387,0.20086461,83349.0,83348.0,0.07797987]
[1741860431571,0.32838461,83349.0,83348.0,0.07797987]
[1741860434984,0.32838461,83349.0,83348.0,0.00017987]
[1741860435186,0.36678461,83349.0,83348.0,0.00017987]
[1741860435571,0.32838461,83349.0,83348.0,0.00017987]
[1741860437270,0.32838461,83349.0,83348.0,0.07557987]
[1741860437485,0.32838461,83349.0,83348.0,0.19556827]
[1741860437688,0.29098461,83349.0,83348.0,0.19556827]
[1741860438078,0.29098461,83349.0,83348.0,0.07557987]
[1741860438383,0.32758461,83349.0,83348.0,0.07557987]
[1741860439778,0.20006461,83349.0,83348.0,0.07557987]
[1741860439977,0.32758461,83349.0,83348.0,0.19556827]
[1741860441186,0.12326461,83349.0,83348.0,0.19556827]
[1741860441379,0.00327761,83349.0,83348.0,0.43556827]
[1741860441584,0.12326461,83349.0,83348.0,0.19556827]
[1741860442383,0.12326461,83349.0,83348.0,0.07557987]
[1741860442584,0.19856461,83349.0,83348.0,0.07557987]
[1741860443685,0.19856461,83349.0,83348.0,0.19556827]
[1741860443890,0.15926461,83349.0,83348.0,0.19556827]
[1741860444390,0.19736461,83349.0,83348.0,0.19556827]
[1741860446194,0.19736461,83349.0,83348.0,0.07557987]
[1741860446393,0.19736461,83349.0,83348.0,0.19556827]
[1741860447889,0.19736461,83349.0,83348.0,0.03697987]
[1741860448097,0.23546461,83349.0,83348.0,0.00017987]
[1741860451483,0.23546461,83349.0,83348.0,7e-08]
[1741860455092,0.38546461,83349.0,83348.0,7e-08]
[1741860455493,0.82176461,83349.0,83348.0,7e-08]
[1741860457999,0.82676461,83349.0,83348.0,7e-08]
[1741860458686,0.6000198,83338.0,83321.0,0.2157528]
[1741860458892,0.1200259,83322.0,83321.0,0.2157528]
[1741860459093,0.2475059,83322.0,83321.0,0.2157528]
[1741860459601,0.2475059,83322.0,83315.0,0.0362]
[1741860459602,0.1200345,83316.0,83315.0,0.0362]
[1741860460595,0.12131211,83316.0,83315.0,0.0362]
[1741860461796,0.12531211,83316.0,83315.0,0.0362]
[1741860462201,0.12531211,83316.0,83315.0,0.0462]
[1741860463504,0.12531211,83316.0,83312.0,0.0376]
[1741860463706,0.1200374,83314.0,83313.0,0.0386]
[1741860463999,0.2475174,83314.0,83313.0,0.0386]
[1741860464205,0.3248174,83314.0,83313.0,0.0386]
[1741860464498,0.32609501,83314.0,83313.0,0.0386]
[1741860464999,0.32709501,83314.0,83313.0,0.0386]
[1741860465507,0.1200561,83301.0,83300.0,0.1]
[1741860466299,0.1961561,83301.0,83300.0,0.1]
[1741860466807,0.19743371,83301.0,83300.0,0.1]
[1741860467305,0.20043371,83301.0,83300.0,0.1]
[1741860467509,0.20043371,83301.0,83300.0,0.1778]
[1741860468299,0.20343371,83301.0,83300.0,0.1758]
[1741860468899,0.12733371,83301.0,83300.0,0.2958576]
[1741860469401,0.25481371,83301.0,83300.0,0.2958576]
[1741860470396,0.25481371,83301.0,83300.0,0.1758]
[1741860470601,0.25481371,83301.0,83300.0,0.1958]
[1741860471400,0.12733371,83301.0,83300.0,0.3158576]
[1741860472306,0.12433371,83301.0,83300.0,0.3158576]
[1741860472513,0.12133371,83301.0,83300.0,0.3158576]
[1741860474106,0.12133371,83301.0,83300.0,0.3178576]
[1741860474809,0.12133371,83301.0,83300.0,0.3158576]
[1741860475014,0.12133371,83301.0,83300.0,0.3178576]
[1741860475311,0.12133371,83301.0,83300.0,0.2978576]
[1741860475813,0.12133371,83301.0,83300.0,0.3178576]
[1741860476015,0.12133371,83301.0,83300.0,0.2978576]
[1741860476313,0.12766,83309.0,83308.0,0.120046]
[1741860476515,0.12766,83309.0,83308.0,0.140046]
[1741860476709,0.2477046,83309.0,83308.0,0.140046]
[1741860476909,0.2477046,83309.0,83308.0,0.235246]
[1741860477311,0.12766,83309.0,83308.0,0.235246]
[1741860477515,0.2477046,83309.0,83308.0,0.235246]
[1741860478412,0.2477046,83309.0,83308.0,0.1152]
[1741860478720,0.3211046,83309.0,83308.0,0.235246]
[1741860479316,0.3211046,83309.0,83308.0,0.1152]
[1741860480222,0.1936246,83309.0,83308.0,0.1152]
[1741860480513,0.3210646,83309.0,83308.0,0.1152]
[1741860481018,0.3210646,83309.0,83308.0,0.03612239]
[1741860481312,0.3230646,83309.0,83308.0,0.03612239]
[1741860481615,0.3240646,83309.0,83308.0,0.03612239]
[1741860481810,0.3220646,83309.0,83308.0,0.15616839]
[1741860482116,0.3250646,83309.0,83308.0,0.03612239]
[1741860482315,0.2516646,83309.0,83308.0,0.15616839]
[1741860483209,0.2496646,83309.0,83308.0,0.15616839]
[1741860483409,0.2496646,83309.0,83308.0,0.03612239]
[1741860483611,0.2476646,83309.0,83308.0,0.03612239]
[1741860483809,0.2496646,83309.0,83308.0,0.03612239]
[1741860484004,0.1200547,83302.0,83301.0,0.0383]
[1741860484819,0.1200547,83302.0,83301.0,0.1583561]
[1741860485020,0.1200528,83304.0,83303.0,0.1200518]
[1741860485212,0.1954528,83304.0,83303.0,0.1200518]